Cogmind - Beta 17.1 @@@ ROGUE MODE // 2026.09.19 @ 07:34:36 Player: Somberlain Result: Self-destructed Performance ------------- Evolutions (1) 500 Regions Visited (3) 600 Robots Destroyed (7) 35 Value Destroyed (204) 204 Prototype IDs (0) 0 Alien Tech Used (0) 0 Bonus (0) 0 TOTAL SCORE: 1339 Bonus ------- None Cogmind --------- Core Integrity 385/400 Matter 285/300 Energy 15/100 System Corruption 0% Temperature Cool (84) Movement Walking (190) Ox1 Location -9/Materials Parts ------- > --- POWER (1) -------- (None) > --- PROPULSION (2) --- Aluminum Leg > --- UTILITY (4) ------ Medium Storage Unit > --- WEAPON (2) ------- Medium Laser Light EM Pulse Cannon > --- INVENTORY (10) --- Aluminum Leg Peak State ------------ > --- POWER ------------ Ion Engine > --- PROPULSION ------- Aluminum Leg Aluminum Leg > --- UTILITY ---------- Small Storage Unit > --- WEAPON ----------- Medium Laser Small Laser > --- INVENTORY -------- (None) [Rating: 6] Favorites ----------- Power Ion Engine Engine Ion Engine Propulsion Aluminum Leg Leg Aluminum Leg Utility Medium Storage Unit Storage Medium Storage Unit Weapon Medium Laser Energy Gun Medium Laser Energy Cannon Light EM Pulse Cannon Build | -11 -10 -10 -9 ------- Run | Yrd Mat Min Mat Slots Evolved 2 | . . . 2 Power . | . . . . Propulsion . | . . . . Utility 2 | . . . 2 Weapon . | . . . . Parts Attached 9 | 6 1 1 1 Power 1 | 1 . . . Engine 1 | 1 . . . Core . | . . . . Reactor . | . . . . Propulsion 3 | 2 . 1 . Treads . | . . . . Leg 3 | 2 . 1 . Wheel . | . . . . Hover . | . . . . Flight . | . . . . Utility 2 | 1 1 . . Device . | . . . . Storage 2 | 1 1 . . Processor . | . . . . Hackware . | . . . . Protection . | . . . . Artifact . | . . . . Weapon 3 | 2 . . 1 Energy Gun 2 | 2 . . . Energy Cannon 1 | . . . 1 Ballistic Gun . | . . . . Ballistic Cannon . | . . . . Launcher . | . . . . Special Weapon . | . . . . Impact Weapon . | . . . . Slashing Weapon . | . . . . Piercing Weapon . | . . . . Special Melee Weapon . | . . . . Unidentified Prototypes . | . . . . Parts Lost 4 | . . 3 1 Power 1 | . . 1 . Propulsion 2 | . . 1 1 Utility . | . . . . Weapon 1 | . . 1 . Highest Loss Streak 3 | . . 3 1 To Critical Strikes . | . . . . Average Backups . | . . 1 1 Power . | . . . . Propulsion . | . . 1 1 Utility . | . . . . Weapon . | . . . . Tool/Special . | . . . . Unused Backups 1 | . . . 1 Power . | . . . . Propulsion 1 | . . . 1 Utility . | . . . . Weapon . | . . . . Tool/Special . | . . . . Average Slot Usage (%) 78 | . 85 80 45 Engine 11 | . 14 11 . Leg 27 | . 28 28 22 Storage 13 | . 14 14 11 Energy Gun 25 | . 28 26 11 Peak Build Rating 6 | 6 6 6 6 Average Rating 5 | 4 6 5 4 On Entrance 4 | . 6 6 4 Avg Prop Armor Cover (%) . | . . . . Naked Turns . | . . . . Heaviest Build 18 | 13 18 18 12 Greatest Support 20 | 20 20 20 20 Greatest Overweight (x) . | . . . . Average Overweight (x) . | . . . . Largest Inventory Capacity 10 | 8 10 10 10 Average Capacity 9 | 6 9 10 10 Most Carried 2 | . 2 2 1 Average Carried . | . . 1 1 Final Capacity 10 | 8 10 10 10 Final Carried 2 | . 2 1 1 Class Distribution -------------------- 100% | Mutant Dominant Class ---------------- Mutant | -10/Materials Mutant | -10/Mines Mutant | -9/Materials Resources | -11 -10 -10 -9 ----------- Run | Yrd Mat Min Mat Matter Collected 270 | 211 59 . . Remotely . | . . . . Salvage Created 129 | . 129 . . Parts 8 | . 8 . . Haulers Intercepted . | . . . . Recyclers Shooed . | . . . . Parts Field Recycled . | . . . . Retrieved Matter . | . . . . Parts Self-Destructed . | . . . . Prevented . | . . . . Parts Restored . | . . . . Kills | -11 -10 -10 -9 ------- Run | Yrd Mat Min Mat Combat Hostiles Destroyed 7 | . 5 2 . Guns 7 | . 5 2 . Classes Destroyed 3 | . 2 1 . Swarmer 3 | . 3 . . Grunt 2 | . 2 . . Demolisher 2 | . . 2 . Best Kill Streak 3 | . 3 2 . Combat Bots Only 3 | . 3 2 . Max Kills in Single Turn 2 | . 2 1 . Gunslinging 1 | . 1 . . Exploded . | . . . . Melee . | . . . . Uniques/NPCs Destroyed . | . . . . Combat | -11 -10 -10 -9 -------- Run | Yrd Mat Min Mat Hostile Shots Fired 34 | . 15 9 10 Missed 8 | . 5 1 2 Hits 26 | . 10 8 8 Melee 1 | . . . 1 Projectile 25 | . 10 8 7 AOE 12 | . . 12 . Critical Strikes 1 | . . . 1 Damage Taken 679 | . 87 460 132 Core 202 | . 10 177 15 Absorbed by Shields . | . . . . Core Remaining (%) 62 | 100 . 25 . Volleys Fired 17 | . 8 7 2 Largest 2 | . 2 2 2 Hottest 106 | . 90 90 106 Shots Fired 32 | . 16 12 4 Gun 30 | . 16 12 2 Cannon 2 | . . . 2 Launcher . | . . . . Special . | . . . . Kinetic . | . . . . Thermal 30 | . 16 12 2 Explosive . | . . . . Electromagnetic 2 | . . . 2 Robot Hit Streak 9 | . 5 9 6 Robot Miss Streak 2 | . 2 1 . Penetration Max . | . . . . Secondary Targets 2 | . 1 1 . Max Gunslinging Chain 1 | . 1 1 . Shots Hit Robots 25 | . 11 10 4 Core Hits 12 | . 7 4 1 Critical Kills . | . . . . Critical Parts Destroyed . | . . . . Critical Strikes 1 | . . 1 . Burn 1 | . . 1 . Melee Attacks . | . . . . Impact . | . . . . Slashing . | . . . . Piercing . | . . . . Sneak Attacks . | . . . . Combat Hostiles . | . . . . Follow-up Attacks . | . . . . Damage Inflicted 322 | . 137 121 64 Guns 284 | . 137 121 26 Cannons 38 | . . . 38 Explosions . | . . . . Melee . | . . . . Ramming . | . . . . Kinetic . | . . . . Thermal 284 | . 137 121 26 Explosive . | . . . . Electromagnetic 38 | . . . 38 Impact . | . . . . Slashing . | . . . . Piercing . | . . . . Highest Corruption . | . . . . Average Corruption . | . . . . Corruption Purged . | . . . . Corruption Blocked . | . . . . Overload Shots . | . . . . Overflow Damage . | . . . . Projectiles . | . . . . Explosions . | . . . . Melee . | . . . . Knockbacks . | . . . . Impact . | . . . . Kinetic . | . . . . Secondary . | . . . . Self-Inflicted Damage . | . . . . Shots . | . . . . Rammed . | . . . . Targets Rammed . | . . . . Kicked . | . . . . Crushed . | . . . . Highest Temperature 108 | . 108 105 84 Average Temperature 55 | . 48 68 51 Received Heat Transfer 75 | . 24 . 51 Siege Activations . | . . . . Martial Activations . | . . . . Shielding Activations . | . . . . Robots Disrupted . | . . . . Combat Hostiles . | . . . . Robots Corrupted . | . . . . Combat Hostiles . | . . . . Parts Fried . | . . . . Impact Corruptions . | . . . . Robots Melted . | . . . . Combat Hostiles . | . . . . Parts Melted 3 | . 3 . . Heat Transferred 817 | . 335 408 74 Parts Sabotaged . | . . . . Parts Stolen . | . . . . Parts Stripped . | . . . . Power Chain Reactions . | . . . . Alert | -11 -10 -10 -9 ------- Run | Yrd Mat Min Mat Maximum Alert Level . | . . . . Low Security (%) 100 | 100 100 100 100 Level 1 . | . . . . Level 2 . | . . . . Level 3 . | . . . . Level 4 . | . . . . Level 5 . | . . . . High Security . | . . . . Max Security . | . . . . Peak Influence 112 | . 112 31 15 Initial 31 | . . 31 3 Average 31 | . 58 11 3 Influence Increases 227 | . 162 50 15 Destroy 0b10 Robot/C 140 | . 100 40 . Destroy Leader 30 | . 20 10 . Successful Hack 12 | . 12 . . Partial Spotted 15 | . 15 . . Lose Combat Pursuer 30 | . 15 . 15 Influence Decreases 227 | . 80 122 25 Entered New Map 58 | . . 51 7 Time Decay 144 | . 80 51 13 Lost Part 25 | . . 20 5 Squads Dispatched 1 | . 1 . . Investigation 1 | . 1 . . Extermination . | . . . . Reinforcement . | . . . . Assault . | . . . . Garrison . | . . . . Intercept . | . . . . Searches Triggered . | . . . . Construction Impeded . | . . . . Haulers Reinforced . | . . . . Active Scanning Responses . | . . . . Cargo Convoy Interrupts . | . . . . Stealth | -11 -10 -10 -9 --------- Run | Yrd Mat Min Mat Distress Signals 3 | . 1 . 2 Communications Jammed . | . . . . Distress Signals . | . . . . Times Spotted 15 | . 8 2 5 Peak Tracking Total 7 | . 3 2 7 Tactical Retreats 2 | . 1 . 1 Traps | -11 -10 -10 -9 ------- Run | Yrd Mat Min Mat Traps Triggered 1 | . 1 . . Indirectly . | . . . . Trap Hack Attempts . | . . . . Triggered . | . . . . Disarmed . | . . . . Reprogrammed . | . . . . Reused . | . . . . Traps Extracted . | . . . . Installed . | . . . . Triggered . | . . . . Machines | -11 -10 -10 -9 ---------- Run | Yrd Mat Min Mat Machines Disabled . | . . . . Max in Single Turn . | . . . . Machines Repaired . | . . . . Machines Dismantled . | . . . . Machines Sabotaged . | . . . . Overloaded Fab Kills . | . . . . Hacking | -11 -10 -10 -9 --------- Run | Yrd Mat Min Mat Machines Accessed 4 | . 3 . 1 Terminals 4 | . 3 . 1 Fabricators . | . . . . Repair Stations . | . . . . Recycling Units . | . . . . Scanalyzers . | . . . . Garrison Access . | . . . . Total Hacks 15 | . 13 . 2 Successful 2 | . 2 . . Failed 13 | . 11 . 2 Catastrophic 2 | . 1 . 1 Database Lockouts . | . . . . Manual 15 | . 13 . 2 Terminals 15 | . 13 . 2 Fabricators . | . . . . Repair Stations . | . . . . Recycling Units . | . . . . Scanalyzers . | . . . . Garrison Access . | . . . . Terminal Hacks 2 | . 2 . . Robot Analysis 2 | . 2 . . Fabricator Hacks . | . . . . Repair Station Hacks . | . . . . Recycling Unit Hacks . | . . . . Scanalyzer . | . . . . Garrison Access Hacks . | . . . . Unauthorized Hacks . | . . . . Terminals . | . . . . Fabricators . | . . . . Repair Stations . | . . . . Recycling Units . | . . . . Scanalyzers . | . . . . Garrison Access . | . . . . Data Cores Recovered . | . . . . Used . | . . . . Hacking Detections 4 | . 3 . 1 Full Trace Events . | . . . . Feedback Events . | . . . . Feedback Blocked . | . . . . Robot Schematics Acquired . | . . . . Robots Built . | . . . . Authchips . | . . . . Time . | . . . . Total Robot Build Rating . | . . . . Part Schematics Acquired . | . . . . Parts Built . | . . . . Authchips . | . . . . Time . | . . . . Total Part Build Rating . | . . . . Part Studies Acquired . | . . . . Parts Repaired . | . . . . Time . | . . . . Parts Recycled . | . . . . Recycled Matter . | . . . . Retrieved Matter . | . . . . Retrieved Components . | . . . . Parts Scanalyzed . | . . . . Part Schematics Acquired . | . . . . Parts Damaged . | . . . . Bothacking | -11 -10 -10 -9 ------------ Run | Yrd Mat Min Mat Used RIF Installer . | . . . . Robots Hacked . | . . . . Non-combat . | . . . . Combat . | . . . . Robot Hacks Applied . | . . . . Relay Couplers Released . | . . . . Fabnet Peak Effective % . | . . . . Robots Rewired . | . . . . Allies Hacked . | . . . . Hacks Repelled . | . . . . Allies | -11 -10 -10 -9 -------- Run | Yrd Mat Min Mat Total Allies . | . . . . Largest Group . | . . . . Highest-Rated Group . | . . . . Highest-Rated Ally . | . . . . Total Orders . | . . . . Ally Attacks . | . . . . Total Damage . | . . . . Kills . | . . . . Allies Corrupted . | . . . . Allies Melted . | . . . . Intel | -11 -10 -10 -9 ------- Run | Yrd Mat Min Mat Active Infowar (turns) . | . . . . Robot Analysis Total 2 | . 2 . . Derelict Logs Recovered . | . . . . Drone Launches . | . . . . Drone Recoveries . | . . . . Exploration | -11 -10 -10 -9 ------------- Run | Yrd Mat Min Mat Turns Passed 485 | 49 228 151 57 Spaces Moved 314 | 36 133 104 41 Core 3 | 3 . . . Treads . | . . . . Legs 311 | 33 133 104 41 Wheels . | . . . . Hover . | . . . . Flight . | . . . . Fastest Speed 50 | 50 120 120 120 Average Speed 119 | 114 120 120 120 Slowest Speed 120 | 120 120 120 120 Overloaded Moves . | . . . . Propulsion Burnouts . | . . . . Robots Hopped . | . . . . Potential Cave-ins . | . . . . Cave-ins Triggered . | . . . . Exploration Rate (%) 17 | 3 30 29 9 Regions Visited 3 Branch Regions 1 Pre-discovered Areas . | . . . . Known Exits Taken . | . . . . Unknown Exits Taken 3 | 1 1 1 . Scrap Searched . | . . . . Spaces Dug . | . . . . Terrain Destroyed . | . . . . Melee . | . . . . Projectile . | . . . . AOE . | . . . . Terrain Rammed . | . . . . Walls Destroyed . | . . . . Machines Disabled . | . . . . Actions | -11 -10 -10 -9 --------- Run | Yrd Mat Min Mat Total 388 | 41 185 118 44 Wait 48 | . 41 7 . Move 311 | 35 132 103 41 Hop . | . . . . Pick Up 2 | . 2 . . Fast Attach 8 | 6 1 . 1 Attach 1 | . . 1 . Detach . | . . . . Swap . | . . . . Drop 1 | . 1 . . Fire 17 | . 8 7 2 Melee . | . . . . Ram . | . . . . Kick . | . . . . Crush . | . . . . Escape Stasis . | . . . . Rewire . | . . . . Trap . | . . . . Miscellaneous . | . . . . Route ------- -11/Scrapyard -10/Materials -10/Mines -9/Materials History --------- Turn | Location | Event 2 | -11/Scrapyard | Discovered new exit (range 16) 50 | -11/Scrapyard | Entered Materials 242 | -10/Materials | Discovered new exit (range 7) 278 | -10/Materials | Entered Mines 300 | -10/Mines | Build established: Mutant 346 | -10/Mines | Discovered new exit (range 12) 378 | -10/Mines | Assembled infested the area 383 | -10/Mines | Assisted by a Guerilla fighting off Assembled 397 | -10/Mines | Core integrity fell below 50% 429 | -10/Mines | Entered Materials 429 | -9/Materials | Evolved 2 slots: Utility x2 433 | -9/Materials | Lost 3 parts (1p1n1w) 486 | -9/Materials | Self-destructed Last Messages --------------- 00415_ The unstable cave ceiling collapses. 00416_ K-01 Serf cleans the Plasma Injector. 00417_ The unstable cave ceiling collapses. 00417_ U-05 Engineer lays Concrete. 00420_ K-01 Serf cleans the Plasma Injector. 00420_ U-05 Engineer builds a Wall. 00422_ The unstable cave ceiling collapses. 00423_ K-01 Serf cleans the Plasma Injector. 00425_ U-05 Engineer builds a Wall. 00427_ K-01 Serf cleans the Plasma Injector. PARAMETERS=UTILITY+2 LOCATION=UNKNOWN GOAL=ESCAPE 00442_ W-16 Scout sends out distress signal. 00468_ Connecting with Terminal... 00468_ Current location identified: Materials 00472_ W-16 Scout sends out distress signal. 00479_ Acquired Lgt. EM Pulse Cannon. 00481_ Critical hit (Burn: +37). 00484_ Aluminum Leg destroyed. Map ----- +----------------------------------------------------+ | | | | | | | | | | | | | | | | | | | | | | | | | | | | | | | | | | | | | | | | | | | ?????????????????###############?????????????????? | | ?????????????????# #?????????????????? | | ?????????????????# ==] #?????????????????? | | ?????????????????# ==] #?????????????????? | | ?????????????????# =@] ##????????????????? | | ?????????????????# l Y #????????????????? | | ???????#####?????# ##????????????????? | | ???????# #???#########g############????????????? | | ???????# #???# + ?????????? | | ######## #???# ##????????????????? | | #???# """ #?????????????????? | | #???# """ #?????????????????? | | ### #???# """ #?????????????????? | | ??# ##??# #?????????????????? | | ??# # #### "T" #?????????????????? | | ??# # """ #?????????????????? | | ??# # " #?????????????????? | | ??# # #?????????????????? | | ??# # ############## #?????????????????? | | ??# #######????????????## ##?????????????????? | | ??# ????????????????????? #??????????????????? | | ??# ????????????????????? #??????????????????? | | ??# ????????????????????? #??????????????????? | | ??# ????????????????????? #??????????????????? | | ??# ????????????????????? #??????????????????? | | ??# ?????????????????????? #??????????????????? | | ??# ????????????????????????#??????????????????? | | ?????????????????????????????????????????????????? | | ?????????????????????????????????????????????????? | +----------------------------------------------------+ Best States ------------- Heat Dissipation 28 Energy Generation 10 Energy Capacity 250 Matter Stores 300 Matter Capacity 300 Sight Range 16 Terrain Scan Density 10 Evasion (%) 55 Item Schematics ----------------- None Robot Schematics ------------------ None Fabricated ------------ Nothing Repaired ---------- Nothing Studied --------- None Alien Tech Used ----------------- None Achievements -------------- None Challenges ------------ None Game ------ Seed ThunderMeleeDeconstructor Manual? 0 Play Time 00:03:37 Cumulative 139.9 hours Start 2026.09.19 @ 07:31:31 End 2026.09.19 @ 07:34:36 Sessions 1 Manual Loads 0 Difficulty Rogue Special Mode None Game No. 155 Rogue 155 Adventurer 0 Explorer 0 Win Type - Total 0 Types 0/0/0/0/0/0/0/0/0/0 Lore% 54 Gallery% 57 Achievement% 45 Wizard Run 0 Options --------- Layout 1 ASCII 0 Keyboard 0 Movement Mouse Keybinds 0 Fullscreen 2 Font 24/Smallcaps Map View 50x35 Zoom Use 0% Tactical HUD 1 Map Filters NONE Filters NONE Steam 1 RUN: 6cfde2a9-2dbb-4039-8a10-8e31dfdb49df